[Event "Titled Tuesday Blitz January 03 Early 2023"]
[White "Lopez Del Alamo, Antonio"]
[Black "Khamdamova, Afruza"]
[WhiteFideId "2227339"]
[BlackFideId "14210444"]
[WhiteElo "2280"]
[BlackElo "2162"]
[Result "0-1"]
[Round "10"]
[TimeControl "180+2"]
[Date "2023.01.03"]
[WhiteClock "0:00:40"]
[BlackClock "0:00:15"]

1. e4 {[%clk 0:02:59]}  e5 {[%clk 0:03:00]} 2. Bc4 {[%clk 0:02:59]}  Nf6 {[%clk 0:02:59]} 3. d3 {[%clk 0:02:56]}  Nc6 {[%clk 0:02:57]} 4. Nc3 {[%clk 0:02:52]}  Bb4 {[%clk 0:02:51]} 5. Ne2 {[%clk 0:02:52]}  d5 {[%clk 0:02:46]} 6. exd5 {[%clk 0:02:47]}  Nxd5 {[%clk 0:02:45]} 7. O-O {[%clk 0:02:45]}  Nxc3 {[%clk 0:02:44]} 8. Nxc3 {[%clk 0:02:44]}  O-O {[%clk 0:02:44]} 9. Be3 {[%clk 0:02:38]}  Bxc3 {[%clk 0:02:36]} 10. bxc3 {[%clk 0:02:31]}  Na5 {[%clk 0:02:30]} 11. Bb3 {[%clk 0:02:27]}  Nxb3 {[%clk 0:02:30]} 12. axb3 {[%clk 0:02:28]}  a6 {[%clk 0:02:29]} 13. c4 {[%clk 0:02:25]}  Be6 {[%clk 0:02:27]} 14. Qf3 {[%clk 0:02:21]}  c6 {[%clk 0:02:15]} 15. Bc5 {[%clk 0:02:16]}  Re8 {[%clk 0:02:15]} 16. Qe3 {[%clk 0:02:17]}  Qf6 {[%clk 0:02:00]} 17. Bb4 {[%clk 0:01:59]}  Bf5 {[%clk 0:01:50]} 18. Bc3 {[%clk 0:01:50]}  Qg6 {[%clk 0:01:45]} 19. Ra5 {[%clk 0:01:48]}  f6 {[%clk 0:01:44]} 20. f4 {[%clk 0:01:36]}  exf4 {[%clk 0:01:27]} 21. Qxf4 {[%clk 0:01:37]}  Bh3 {[%clk 0:00:48]} 22. Qf3 {[%clk 0:01:28]}  Bg4 {[%clk 0:00:48]} 23. Qg3 {[%clk 0:01:26]}  Re2 {[%clk 0:00:47]} 24. h3 {[%clk 0:01:19]}  Bd7 {[%clk 0:00:29]} 25. Qxg6 {[%clk 0:01:15]}  hxg6 {[%clk 0:00:29]} 26. Rf2 {[%clk 0:01:16]}  Rae8 {[%clk 0:00:29]} 27. Kf1 {[%clk 0:01:17]}  Rxf2+ {[%clk 0:00:28]} 28. Kxf2 {[%clk 0:01:17]}  Kf7 {[%clk 0:00:28]} 29. Ra1 {[%clk 0:01:12]}  g5 {[%clk 0:00:28]} 30. Rf1 {[%clk 0:01:02]}  Kg6 {[%clk 0:00:28]} 31. Re1 {[%clk 0:01:01]}  Rxe1 {[%clk 0:00:26]} 32. Kxe1 {[%clk 0:01:01]}  g4 {[%clk 0:00:27]} 33. h4 {[%clk 0:01:00]}  g3 {[%clk 0:00:26]} 34. Ke2 {[%clk 0:00:51]}  Kh5 {[%clk 0:00:26]} 35. Be1 {[%clk 0:00:52]}  Kxh4 {[%clk 0:00:26]} 36. Kf3 {[%clk 0:00:52]}  Bg4+ {[%clk 0:00:26]} 37. Kf4 {[%clk 0:00:53]}  g5+ {[%clk 0:00:26]} 38. Ke3 {[%clk 0:00:52]}  f5 {[%clk 0:00:21]} 39. d4 {[%clk 0:00:49]}  f4+ {[%clk 0:00:20]} 40. Ke4 {[%clk 0:00:49]}  Bh5 {[%clk 0:00:21]} 41. d5 {[%clk 0:00:48]}  cxd5+ {[%clk 0:00:19]} 42. cxd5 {[%clk 0:00:48]}  Bg6+ {[%clk 0:00:19]} 43. Ke5 {[%clk 0:00:47]}  Kg4 {[%clk 0:00:13]} 44. d6 {[%clk 0:00:37]}  Be8 {[%clk 0:00:13]} 45. c4 {[%clk 0:00:38]}  f3 {[%clk 0:00:13]} 46. gxf3+ {[%clk 0:00:36]}  Kxf3 {[%clk 0:00:13]} 47. Bxg3 {[%clk 0:00:36]}  Kxg3 {[%clk 0:00:13]} 48. Ke6 {[%clk 0:00:37]}  g4 {[%clk 0:00:13]} 49. d7 {[%clk 0:00:37]}  Bxd7+ {[%clk 0:00:13]} 50. Kxd7 {[%clk 0:00:38]}  Kf2 {[%clk 0:00:14]} 51. Kc7 {[%clk 0:00:39]}  g3 {[%clk 0:00:14]} 52. Kxb7 {[%clk 0:00:39]}  g2 {[%clk 0:00:15]} 53. Kxa6 {[%clk 0:00:40]}  g1=Q {[%clk 0:00:15]} 54. b4 {[%clk 0:00:40]}  Qb1 {[%clk 0:00:15]} 55. Kb5 {[%clk 0:00:39]}  Ke3 {[%clk 0:00:15]} 56. c5 {[%clk 0:00:40]}  Kd4 {[%clk 0:00:15]} 57. Ka5 {[%clk 0:00:40]}  Kd5 {[%clk 0:00:15]} 58. Kb5 {[%clk 0:00:39]}  Qd3+ {[%clk 0:00:15]} 59. Kb6 {[%clk 0:00:39]}  Qb3 {[%clk 0:00:14]} 60. b5 {[%clk 0:00:39]}  Kc4 {[%clk 0:00:14]} 61. c6 {[%clk 0:00:39]}  Qxb5+ {[%clk 0:00:15]} 62. Kc7 {[%clk 0:00:40]}  Kd5 {[%clk 0:00:15]} 0-1


[Site "https://www.chess.com"]

[Event "Titled Tuesday Blitz January 03 Early 2023"]
[White "Fabris, Alberto"]
[Black "Blanco Acevedo, Cristobal Jose"]
[WhiteFideId "801348"]
[BlackFideId "3900525"]
[WhiteElo "2230"]
[BlackElo "2310"]
[Result "0-1"]
[Round "10"]
[TimeControl "180+2"]
[Date "2023.01.03"]
[WhiteClock "0:00:53"]
[BlackClock "0:01:27"]

1. e4 {[%clk 0:03:00]}  c5 {[%clk 0:02:59]} 2. Nf3 {[%clk 0:03:01]}  Nc6 {[%clk 0:03:00]} 3. Bb5 {[%clk 0:03:00]}  e6 {[%clk 0:03:00]} 4. O-O {[%clk 0:02:59]}  Nge7 {[%clk 0:03:00]} 5. c3 {[%clk 0:02:58]}  a6 {[%clk 0:02:55]} 6. Ba4 {[%clk 0:02:56]}  b5 {[%clk 0:02:53]} 7. Bc2 {[%clk 0:02:56]}  h6 {[%clk 0:02:38]} 8. d4 {[%clk 0:02:52]}  cxd4 {[%clk 0:02:37]} 9. cxd4 {[%clk 0:02:53]}  d5 {[%clk 0:02:37]} 10. e5 {[%clk 0:02:49]}  Nb4 {[%clk 0:02:35]} 11. Bb3 {[%clk 0:02:48]}  a5 {[%clk 0:02:35]} 12. a3 {[%clk 0:02:45]}  Nbc6 {[%clk 0:02:32]} 13. Nc3 {[%clk 0:02:42]}  Ba6 {[%clk 0:02:30]} 14. Re1 {[%clk 0:02:40]}  Nf5 {[%clk 0:02:28]} 15. Be3 {[%clk 0:02:38]}  Qb6 {[%clk 0:02:23]} 16. Bc2 {[%clk 0:02:30]}  Nxe3 {[%clk 0:02:14]} 17. fxe3 {[%clk 0:02:29]}  Be7 {[%clk 0:02:10]} 18. Qd2 {[%clk 0:02:26]}  b4 {[%clk 0:02:07]} 19. axb4 {[%clk 0:02:23]}  axb4 {[%clk 0:02:06]} 20. Ne2 {[%clk 0:02:12]}  b3 {[%clk 0:02:05]} 21. Bd3 {[%clk 0:02:09]}  O-O {[%clk 0:01:59]} 22. Nf4 {[%clk 0:02:06]}  Bb4 {[%clk 0:01:57]} 23. Qf2 {[%clk 0:01:53]}  Bxe1 {[%clk 0:01:57]} 24. Rxe1 {[%clk 0:01:52]}  Bxd3 {[%clk 0:01:56]} 25. Nxd3 {[%clk 0:01:53]}  Ra2 {[%clk 0:01:53]} 26. Qg3 {[%clk 0:01:46]}  Rfa8 {[%clk 0:01:49]} 27. Nf4 {[%clk 0:01:44]}  Ne7 {[%clk 0:01:36]} 28. Nh4 {[%clk 0:01:35]}  Ra1 {[%clk 0:01:31]} 29. h3 {[%clk 0:01:28]}  Qb4 {[%clk 0:01:27]} 30. Rxa1 {[%clk 0:01:15]}  Rxa1+ {[%clk 0:01:27]} 31. Kh2 {[%clk 0:01:15]}  Qe1 {[%clk 0:01:26]} 32. Qg4 {[%clk 0:00:59]}  g5 {[%clk 0:01:26]} 33. Nf3 {[%clk 0:00:53]}  Qh1+ {[%clk 0:01:26]} 34. Kg3 {[%clk 0:00:53]}  Nf5+ {[%clk 0:01:27]} 0-1


[Site "https://www.chess.com"]

[Event "Titled Tuesday Blitz January 03 Early 2023"]
[White "Qashashvili, Alexandre"]
[Black "ArchibaldCerveza29"]
[WhiteFideId "13600842"]
[WhiteElo "2505"]
[BlackElo "2510"]
[Result "0-1"]
[Round "10"]
[TimeControl "180+2"]
[Date "2023.01.03"]
[WhiteClock "0:00:02"]
[BlackClock "0:00:02"]

1. e4 {[%clk 0:03:00]}  e5 {[%clk 0:02:59]} 2. Nf3 {[%clk 0:02:57]}  Nc6 {[%clk 0:02:58]} 3. Nc3 {[%clk 0:02:57]}  Nf6 {[%clk 0:02:57]} 4. d4 {[%clk 0:02:56]}  exd4 {[%clk 0:02:58]} 5. Nxd4 {[%clk 0:02:55]}  Nxe4 {[%clk 0:02:58]} 6. Nxc6 {[%clk 0:02:54]}  bxc6 {[%clk 0:02:59]} 7. Nxe4 {[%clk 0:02:52]}  Qe7 {[%clk 0:02:57]} 8. Qe2 {[%clk 0:02:50]}  d5 {[%clk 0:02:40]} 9. Ng3 {[%clk 0:02:47]}  Be6 {[%clk 0:02:39]} 10. c3 {[%clk 0:02:46]}  g6 {[%clk 0:02:38]} 11. Bf4 {[%clk 0:02:43]}  Bg7 {[%clk 0:02:38]} 12. Qe3 {[%clk 0:02:42]}  O-O {[%clk 0:02:37]} 13. Be2 {[%clk 0:02:40]}  Rab8 {[%clk 0:02:36]} 14. b3 {[%clk 0:02:37]}  Rfe8 {[%clk 0:02:28]} 15. O-O {[%clk 0:02:36]}  Qa3 {[%clk 0:02:20]} 16. Qd2 {[%clk 0:02:34]}  h5 {[%clk 0:02:18]} 17. Rfe1 {[%clk 0:02:13]}  h4 {[%clk 0:02:16]} 18. Nf1 {[%clk 0:02:12]}  Qc5 {[%clk 0:02:10]} 19. Rac1 {[%clk 0:02:08]}  a5 {[%clk 0:02:09]} 20. Bh6 {[%clk 0:01:57]}  Bh8 {[%clk 0:02:09]} 21. Ne3 {[%clk 0:01:55]}  h3 {[%clk 0:02:03]} 22. gxh3 {[%clk 0:01:49]}  Bxh3 {[%clk 0:02:00]} 23. Bg4 {[%clk 0:01:50]}  Bxg4 {[%clk 0:01:48]} 24. Nxg4 {[%clk 0:01:49]}  Rxe1+ {[%clk 0:01:47]} 25. Qxe1 {[%clk 0:01:33]}  a4 {[%clk 0:01:47]} 26. Be3 {[%clk 0:01:21]}  Qd6 {[%clk 0:01:30]} 27. Bd4 {[%clk 0:01:19]}  Qf4 {[%clk 0:01:24]} 28. h3 {[%clk 0:01:04]}  axb3 {[%clk 0:01:13]} 29. axb3 {[%clk 0:01:05]}  Bxd4 {[%clk 0:01:08]} 30. cxd4 {[%clk 0:01:05]}  Rxb3 {[%clk 0:01:00]} 31. Rxc6 {[%clk 0:00:13]}  Rxh3 {[%clk 0:00:52]} 32. Qe8+ {[%clk 0:00:13]}  Kg7 {[%clk 0:00:33]} 33. Qe5+ {[%clk 0:00:12]}  Qxe5 {[%clk 0:00:32]} 34. Nxe5 {[%clk 0:00:11]}  Rh4 {[%clk 0:00:30]} 35. Nf3 {[%clk 0:00:11]}  Rf4 {[%clk 0:00:29]} 36. Kg2 {[%clk 0:00:11]}  g5 {[%clk 0:00:24]} 37. Rxc7 {[%clk 0:00:11]}  g4 {[%clk 0:00:22]} 38. Ne5 {[%clk 0:00:11]}  Rxd4 {[%clk 0:00:15]} 39. Rxf7+ {[%clk 0:00:10]}  Kh6 {[%clk 0:00:14]} 40. Kg3 {[%clk 0:00:10]}  Re4 {[%clk 0:00:14]} 41. Nxg4+ {[%clk 0:00:09]}  Kg6 {[%clk 0:00:14]} 42. Rd7 {[%clk 0:00:08]}  d4 {[%clk 0:00:14]} 43. f3 {[%clk 0:00:08]}  Re1 {[%clk 0:00:13]} 44. Rd6+ {[%clk 0:00:06]}  Kf5 {[%clk 0:00:13]} 45. Rd5+ {[%clk 0:00:06]}  Kg6 {[%clk 0:00:12]} 46. Rxd4 {[%clk 0:00:07]}  Ra1 {[%clk 0:00:12]} 47. Kf4 {[%clk 0:00:07]}  Re1 {[%clk 0:00:12]} 48. Rd6+ {[%clk 0:00:06]}  Kf7 {[%clk 0:00:12]} 49. Ne5+ {[%clk 0:00:06]}  Ke7 {[%clk 0:00:11]} 50. Ra6 {[%clk 0:00:06]}  Rh1 {[%clk 0:00:11]} 51. Ke4 {[%clk 0:00:06]}  Re1+ {[%clk 0:00:10]} 52. Kf5 {[%clk 0:00:05]}  Kf8 {[%clk 0:00:10]} 53. f4 {[%clk 0:00:05]}  Rg1 {[%clk 0:00:08]} 54. Ke6 {[%clk 0:00:05]}  Kg7 {[%clk 0:00:08]} 55. Ra7+ {[%clk 0:00:04]}  Kh6 {[%clk 0:00:08]} 56. f5 {[%clk 0:00:05]}  Rb1 {[%clk 0:00:08]} 57. f6 {[%clk 0:00:04]}  Rb6+ {[%clk 0:00:08]} 58. Kf5 {[%clk 0:00:05]}  Rb1 {[%clk 0:00:07]} 59. Ra8 {[%clk 0:00:05]}  Rf1+ {[%clk 0:00:08]} 60. Ke6 {[%clk 0:00:05]}  Kh7 {[%clk 0:00:08]} 61. Re8 {[%clk 0:00:04]}  Ra1 {[%clk 0:00:06]} 62. f7 {[%clk 0:00:04]}  Ra6+ {[%clk 0:00:06]} 63. Kf5 {[%clk 0:00:04]}  Ra1 {[%clk 0:00:03]} 64. f8=Q {[%clk 0:00:04]}  Rf1+ {[%clk 0:00:03]} 65. Ke6 {[%clk 0:00:05]}  Rf6+ {[%clk 0:00:02]} 66. Ke7 {[%clk 0:00:02]}  Re6+ {[%clk 0:00:02]} 0-1


[Site "https://www.chess.com"]

[Event "Titled Tuesday Blitz January 03 Early 2023"]
[White "Krstic, Milos"]
[Black "Wieczorek, Zbigniew"]
[WhiteFideId "954888"]
[BlackFideId "1102001"]
[WhiteElo "2183"]
[BlackElo "2150"]
[Result "1-0"]
[Round "10"]
[TimeControl "180+2"]
[Date "2023.01.03"]
[WhiteClock "0:02:13"]
[BlackClock "0:01:48"]

1. e4 {[%clk 0:03:00]}  g6 {[%clk 0:02:59]} 2. d4 {[%clk 0:02:59]}  Bg7 {[%clk 0:02:59]} 3. Nc3 {[%clk 0:02:59]}  c6 {[%clk 0:02:59]} 4. Be3 {[%clk 0:03:00]}  d5 {[%clk 0:02:59]} 5. Qd2 {[%clk 0:02:59]}  dxe4 {[%clk 0:02:59]} 6. Nxe4 {[%clk 0:02:59]}  Nf6 {[%clk 0:03:00]} 7. Nxf6+ {[%clk 0:02:59]}  exf6 {[%clk 0:03:00]} 8. Nf3 {[%clk 0:02:59]}  O-O {[%clk 0:03:00]} 9. Bc4 {[%clk 0:02:59]}  Nd7 {[%clk 0:02:59]} 10. h3 {[%clk 0:03:00]}  Nb6 {[%clk 0:03:00]} 11. Bb3 {[%clk 0:02:59]}  a5 {[%clk 0:03:00]} 12. c3 {[%clk 0:02:59]}  Re8 {[%clk 0:02:59]} 13. O-O {[%clk 0:02:59]}  Be6 {[%clk 0:02:59]} 14. Bf4 {[%clk 0:02:56]}  a4 {[%clk 0:02:57]} 15. Bxe6 {[%clk 0:02:56]}  Rxe6 {[%clk 0:02:57]} 16. b3 {[%clk 0:02:54]}  Nd5 {[%clk 0:02:45]} 17. Bg3 {[%clk 0:02:46]}  axb3 {[%clk 0:02:45]} 18. axb3 {[%clk 0:02:47]}  Rxa1 {[%clk 0:02:46]} 19. Rxa1 {[%clk 0:02:47]}  Qe8 {[%clk 0:02:46]} 20. c4 {[%clk 0:02:41]}  Re2 {[%clk 0:02:40]} 21. Qa5 {[%clk 0:02:37]}  b6 {[%clk 0:02:36]} 22. Qa8 {[%clk 0:02:35]}  Nc3 {[%clk 0:02:25]} 23. Qxe8+ {[%clk 0:02:29]}  Rxe8 {[%clk 0:02:25]} 24. Ra6 {[%clk 0:02:30]}  f5 {[%clk 0:02:07]} 25. Be5 {[%clk 0:02:21]}  f6 {[%clk 0:02:04]} 26. Bc7 {[%clk 0:02:18]}  b5 {[%clk 0:01:55]} 27. Rxc6 {[%clk 0:02:16]}  bxc4 {[%clk 0:01:50]} 28. bxc4 {[%clk 0:02:17]}  g5 {[%clk 0:01:49]} 29. d5 {[%clk 0:02:16]}  g4 {[%clk 0:01:48]} 30. Nd4 {[%clk 0:02:13]} 1-0


[Site "https://www.chess.com"]

[Event "Titled Tuesday Blitz January 03 Early 2023"]
[White "Koridze, Lile"]
[Black "Kukula, Pawel"]
[WhiteFideId "13612514"]
[BlackFideId "1115081"]
[WhiteElo "2191"]
[BlackElo "2135"]
[Result "0-1"]
[Round "10"]
[TimeControl "180+2"]
[Date "2023.01.03"]
[WhiteClock "0:00:03"]
[BlackClock "0:00:43"]

1. d4 {[%clk 0:03:00]}  Nf6 {[%clk 0:02:53]} 2. c4 {[%clk 0:03:01]}  Nc6 {[%clk 0:02:50]} 3. Nf3 {[%clk 0:03:00]}  e6 {[%clk 0:02:50]} 4. a3 {[%clk 0:02:57]}  g6 {[%clk 0:02:50]} 5. Nc3 {[%clk 0:02:55]}  d6 {[%clk 0:02:49]} 6. e4 {[%clk 0:02:54]}  Bg7 {[%clk 0:02:48]} 7. Bd3 {[%clk 0:02:53]}  O-O {[%clk 0:02:48]} 8. O-O {[%clk 0:02:53]}  e5 {[%clk 0:02:47]} 9. d5 {[%clk 0:02:47]}  Nb8 {[%clk 0:02:46]} 10. h3 {[%clk 0:02:47]}  Nbd7 {[%clk 0:02:39]} 11. Be3 {[%clk 0:02:47]}  b6 {[%clk 0:02:38]} 12. b4 {[%clk 0:02:47]}  a5 {[%clk 0:02:38]} 13. Rc1 {[%clk 0:02:40]}  axb4 {[%clk 0:02:37]} 14. axb4 {[%clk 0:02:40]}  Nh5 {[%clk 0:02:38]} 15. Qb3 {[%clk 0:02:34]}  h6 {[%clk 0:02:31]} 16. Ne2 {[%clk 0:02:27]}  f5 {[%clk 0:02:24]} 17. Bd2 {[%clk 0:01:33]}  Ndf6 {[%clk 0:02:04]} 18. Nc3 {[%clk 0:01:29]}  f4 {[%clk 0:01:59]} 19. c5 {[%clk 0:01:26]}  bxc5 {[%clk 0:01:59]} 20. bxc5 {[%clk 0:01:26]}  g5 {[%clk 0:02:00]} 21. cxd6 {[%clk 0:01:24]}  cxd6 {[%clk 0:02:01]} 22. Nb5 {[%clk 0:01:24]}  Rf7 {[%clk 0:01:57]} 23. Rc6 {[%clk 0:01:22]}  Bf8 {[%clk 0:01:53]} 24. Rfc1 {[%clk 0:01:15]}  Bd7 {[%clk 0:01:45]} 25. Nxd6 {[%clk 0:01:05]}  Rg7 {[%clk 0:01:36]} 26. Nb7 {[%clk 0:00:54]}  Qe8 {[%clk 0:01:30]} 27. Rb6 {[%clk 0:00:38]}  g4 {[%clk 0:01:25]} 28. hxg4 {[%clk 0:00:36]}  Bxg4 {[%clk 0:01:18]} 29. Nh4 {[%clk 0:00:32]}  Kh8 {[%clk 0:01:15]} 30. Qb5 {[%clk 0:00:22]}  Bd7 {[%clk 0:01:09]} 31. Qc4 {[%clk 0:00:16]}  Rc8 {[%clk 0:01:07]} 32. Qa2 {[%clk 0:00:13]}  Rxc1+ {[%clk 0:01:07]} 33. Bxc1 {[%clk 0:00:14]}  Ng4 {[%clk 0:01:04]} 34. Nd6 {[%clk 0:00:10]}  Bxd6 {[%clk 0:00:57]} 35. Rxd6 {[%clk 0:00:11]}  Qe7 {[%clk 0:00:58]} 36. Ng6+ {[%clk 0:00:11]}  Rxg6 {[%clk 0:00:57]} 37. Rxg6 {[%clk 0:00:12]}  Kh7 {[%clk 0:00:47]} 38. Qa6 {[%clk 0:00:05]}  Qh4 {[%clk 0:00:45]} 39. g3 {[%clk 0:00:03]}  Qh2+ {[%clk 0:00:43]} 40. Kf1 {[%clk 0:00:03]}  Qxf2# {[%clk 0:00:43]} 0-1


[Site "https://www.chess.com"]

[Event "Titled Tuesday Blitz January 03 Early 2023"]
[White "Zherebtsova, Alexandra"]
[Black "Liu, Kelsey"]
[WhiteFideId "24129518"]
[BlackFideId "30944481"]
[WhiteElo "2155"]
[BlackElo "2065"]
[Result "0-1"]
[Round "10"]
[TimeControl "180+2"]
[Date "2023.01.03"]
[WhiteClock "0:00:02"]
[BlackClock "0:00:11"]

1. d4 {[%clk 0:03:00]}  Nf6 {[%clk 0:02:58]} 2. Nf3 {[%clk 0:03:01]}  e6 {[%clk 0:02:58]} 3. c4 {[%clk 0:02:59]}  d5 {[%clk 0:02:57]} 4. e3 {[%clk 0:02:55]}  Be7 {[%clk 0:02:54]} 5. Nbd2 {[%clk 0:02:54]}  O-O {[%clk 0:02:53]} 6. b3 {[%clk 0:02:53]}  c5 {[%clk 0:02:50]} 7. Bb2 {[%clk 0:02:52]}  Nc6 {[%clk 0:02:48]} 8. Bd3 {[%clk 0:02:51]}  Re8 {[%clk 0:02:42]} 9. O-O {[%clk 0:02:49]}  b6 {[%clk 0:02:42]} 10. Rc1 {[%clk 0:02:48]}  Bd6 {[%clk 0:02:40]} 11. Bb1 {[%clk 0:02:44]}  e5 {[%clk 0:02:37]} 12. cxd5 {[%clk 0:02:43]}  Nxd5 {[%clk 0:02:34]} 13. dxe5 {[%clk 0:02:35]}  Nxe5 {[%clk 0:02:32]} 14. Ne4 {[%clk 0:02:15]}  Bc7 {[%clk 0:02:13]} 15. Nxe5 {[%clk 0:00:59]}  Bxe5 {[%clk 0:02:12]} 16. Bxe5 {[%clk 0:00:48]}  Rxe5 {[%clk 0:02:12]} 17. f4 {[%clk 0:00:48]}  Re8 {[%clk 0:02:09]} 18. Qh5 {[%clk 0:00:43]}  h6 {[%clk 0:01:51]} 19. Rfd1 {[%clk 0:00:35]}  Bb7 {[%clk 0:01:27]} 20. Nc3 {[%clk 0:00:15]}  Nf6 {[%clk 0:01:22]} 21. Qe2 {[%clk 0:00:15]}  Qe7 {[%clk 0:01:19]} 22. Re1 {[%clk 0:00:11]}  Rad8 {[%clk 0:01:06]} 23. e4 {[%clk 0:00:12]}  Rd4 {[%clk 0:01:03]} 24. e5 {[%clk 0:00:12]}  Qd7 {[%clk 0:00:40]} 25. Qf2 {[%clk 0:00:11]}  Nh5 {[%clk 0:00:37]} 26. Ne2 {[%clk 0:00:08]}  Rd2 {[%clk 0:00:36]} 27. Bc2 {[%clk 0:00:07]}  Qd5 {[%clk 0:00:32]} 28. Red1 {[%clk 0:00:04]}  Nxf4 {[%clk 0:00:12]} 29. Rxd2 {[%clk 0:00:02]}  Nh3+ {[%clk 0:00:11]} 0-1


[Site "https://www.chess.com"]

[Event "Titled Tuesday Blitz January 03 Early 2023"]
[White "MIM06"]
[Black "Sreyas Payyappat"]
[BlackFideId "46674969"]
[WhiteElo "2273"]
[BlackElo "2076"]
[Result "0-1"]
[Round "10"]
[TimeControl "180+2"]
[Date "2023.01.03"]
[WhiteClock "0:00:04"]
[BlackClock "0:01:05"]

1. e4 {[%clk 0:02:56]}  c5 {[%clk 0:02:58]} 2. Nf3 {[%clk 0:02:56]}  d6 {[%clk 0:02:58]} 3. Bb5+ {[%clk 0:02:57]}  Bd7 {[%clk 0:02:58]} 4. Bxd7+ {[%clk 0:02:57]}  Nxd7 {[%clk 0:02:58]} 5. c3 {[%clk 0:02:56]}  Ngf6 {[%clk 0:02:57]} 6. Qe2 {[%clk 0:02:57]}  g6 {[%clk 0:02:56]} 7. d4 {[%clk 0:02:57]}  cxd4 {[%clk 0:02:53]} 8. cxd4 {[%clk 0:02:58]}  Bg7 {[%clk 0:02:53]} 9. e5 {[%clk 0:02:43]}  dxe5 {[%clk 0:02:45]} 10. dxe5 {[%clk 0:02:44]}  Nd5 {[%clk 0:02:37]} 11. e6 {[%clk 0:02:44]}  fxe6 {[%clk 0:02:37]} 12. O-O {[%clk 0:02:19]}  Nc5 {[%clk 0:02:32]} 13. Qb5+ {[%clk 0:02:07]}  Nd7 {[%clk 0:02:30]} 14. Qxb7 {[%clk 0:02:02]}  O-O {[%clk 0:02:30]} 15. Qc6 {[%clk 0:01:53]}  Kh8 {[%clk 0:02:20]} 16. Qxe6 {[%clk 0:01:52]}  Nc5 {[%clk 0:02:19]} 17. Qe2 {[%clk 0:01:38]}  Qd6 {[%clk 0:02:14]} 18. Rd1 {[%clk 0:01:26]}  Rad8 {[%clk 0:02:10]} 19. Re1 {[%clk 0:01:16]}  Nb4 {[%clk 0:02:03]} 20. Nc3 {[%clk 0:01:12]}  Ncd3 {[%clk 0:02:00]} 21. Rf1 {[%clk 0:01:10]}  e5 {[%clk 0:01:55]} 22. Bg5 {[%clk 0:01:07]}  Rde8 {[%clk 0:01:53]} 23. a3 {[%clk 0:01:06]}  e4 {[%clk 0:01:49]} 24. Nd2 {[%clk 0:00:58]}  Nc2 {[%clk 0:01:28]} 25. Ndxe4 {[%clk 0:00:28]}  Bxc3 {[%clk 0:01:27]} 26. Nxd6 {[%clk 0:00:22]}  Rxe2 {[%clk 0:01:26]} 27. Rad1 {[%clk 0:00:16]}  Nxb2 {[%clk 0:01:20]} 28. Rc1 {[%clk 0:00:12]}  Be5 {[%clk 0:01:18]} 29. Nb5 {[%clk 0:00:07]}  a6 {[%clk 0:01:16]} 30. Na7 {[%clk 0:00:06]}  Nd3 {[%clk 0:01:14]} 31. Rcd1 {[%clk 0:00:04]}  Nxf2 {[%clk 0:01:14]} 32. Rc1 {[%clk 0:00:03]}  Bb2 {[%clk 0:01:07]} 33. Rxc2 {[%clk 0:00:01]}  Rxc2 {[%clk 0:01:06]} 34. h4 {[%clk 0:00:02]}  Bd4 {[%clk 0:01:06]} 35. Kh2 {[%clk 0:00:02]}  Ng4+ {[%clk 0:01:06]} 36. Kh3 {[%clk 0:00:02]}  Rxf1 {[%clk 0:01:06]} 37. Kg3 {[%clk 0:00:03]}  Bxa7 {[%clk 0:01:05]} 38. Bf6+ {[%clk 0:00:04]}  Nxf6 {[%clk 0:01:05]} 0-1


[Site "https://www.chess.com"]

[Event "Titled Tuesday Blitz January 03 Early 2023"]
[White "Topalov, Aleksandar"]
[Black "Ardila, Oscar Humberto"]
[WhiteFideId "925659"]
[BlackFideId "4404742"]
[WhiteElo "2233"]
[BlackElo "1982"]
[Result "1-0"]
[Round "10"]
[TimeControl "180+2"]
[Date "2023.01.03"]
[WhiteClock "0:01:10"]
[BlackClock "0:00:04"]

1. b3 {[%clk 0:03:00]}  Nf6 {[%clk 0:02:52]} 2. Bb2 {[%clk 0:03:00]}  e6 {[%clk 0:02:48]} 3. Nf3 {[%clk 0:03:00]}  Be7 {[%clk 0:02:04]} 4. e3 {[%clk 0:03:00]}  O-O {[%clk 0:02:03]} 5. d4 {[%clk 0:03:00]}  d6 {[%clk 0:02:04]} 6. Nbd2 {[%clk 0:03:00]}  Nbd7 {[%clk 0:02:04]} 7. Bd3 {[%clk 0:03:00]}  b6 {[%clk 0:02:02]} 8. O-O {[%clk 0:03:00]}  Bb7 {[%clk 0:02:02]} 9. c4 {[%clk 0:02:54]}  c5 {[%clk 0:02:02]} 10. Rc1 {[%clk 0:02:51]}  Re8 {[%clk 0:01:56]} 11. Bb1 {[%clk 0:02:50]}  Rc8 {[%clk 0:01:12]} 12. Re1 {[%clk 0:02:41]}  h6 {[%clk 0:00:59]} 13. Qc2 {[%clk 0:02:40]}  Nf8 {[%clk 0:00:57]} 14. Qd1 {[%clk 0:02:30]}  a6 {[%clk 0:00:56]} 15. a4 {[%clk 0:02:28]}  Qc7 {[%clk 0:00:43]} 16. e4 {[%clk 0:02:25]}  e5 {[%clk 0:00:39]} 17. dxe5 {[%clk 0:02:20]}  dxe5 {[%clk 0:00:39]} 18. Bxe5 {[%clk 0:02:20]}  Qd7 {[%clk 0:00:36]} 19. Bc3 {[%clk 0:02:07]}  Rcd8 {[%clk 0:00:33]} 20. e5 {[%clk 0:02:01]}  N6h7 {[%clk 0:00:27]} 21. Ne4 {[%clk 0:01:58]}  Qg4 {[%clk 0:00:16]} 22. Qe2 {[%clk 0:01:56]}  Ne6 {[%clk 0:00:14]} 23. h3 {[%clk 0:01:53]}  Qh5 {[%clk 0:00:14]} 24. Ng3 {[%clk 0:01:52]}  Bxf3 {[%clk 0:00:08]} 25. Nxh5 {[%clk 0:01:47]}  Bxe2 {[%clk 0:00:08]} 26. Rxe2 {[%clk 0:01:47]}  Nd4 {[%clk 0:00:08]} 27. Bxd4 {[%clk 0:01:44]}  Rxd4 {[%clk 0:00:07]} 28. e6 {[%clk 0:01:34]}  f6 {[%clk 0:00:06]} 29. Ng3 {[%clk 0:01:31]}  Ng5 {[%clk 0:00:06]} 30. Nf5 {[%clk 0:01:29]}  Rdd8 {[%clk 0:00:04]} 31. h4 {[%clk 0:01:26]}  Nh7 {[%clk 0:00:03]} 32. Be4 {[%clk 0:01:19]}  Nf8 {[%clk 0:00:03]} 33. Bd5 {[%clk 0:01:19]}  Rc8 {[%clk 0:00:01]} 34. h5 {[%clk 0:01:19]}  Nh7 {[%clk 0:00:01]} 35. f4 {[%clk 0:01:18]}  Ng5 {[%clk 0:00:02]} 36. fxg5 {[%clk 0:01:18]}  hxg5 {[%clk 0:00:02]} 37. g4 {[%clk 0:01:14]}  Kh7 {[%clk 0:00:03]} 38. Kg2 {[%clk 0:01:13]}  g6 {[%clk 0:00:03]} 39. hxg6+ {[%clk 0:01:13]}  Kxg6 {[%clk 0:00:03]} 40. Rh1 {[%clk 0:01:12]}  b5 {[%clk 0:00:04]} 41. Rh6# {[%clk 0:01:10]} 1-0


[Site "https://www.chess.com"]